[Event "Titled Tuesday Blitz October 11 Early 2022"]
[White "Osiecki, Stanislaw"]
[Black "Glavina, Pablo"]
[WhiteFideId "1102990"]
[BlackFideId "100234"]
[WhiteElo "2088"]
[BlackElo "2351"]
[Result "1-0"]
[Round "10"]
[TimeControl "180+1"]
[Date "2022.10.12"]
[WhiteClock "0:00:03"]
[BlackClock "0:00:07"]

1. e4 {[%clk 0:03:00]}  c5 {[%clk 0:02:59]} 2. c3 {[%clk 0:03:00]}  Nf6 {[%clk 0:02:58]} 3. e5 {[%clk 0:02:59]}  Nd5 {[%clk 0:02:58]} 4. d4 {[%clk 0:02:59]}  cxd4 {[%clk 0:02:58]} 5. Nf3 {[%clk 0:02:59]}  Nc6 {[%clk 0:02:57]} 6. cxd4 {[%clk 0:02:59]}  d6 {[%clk 0:02:56]} 7. Bc4 {[%clk 0:02:58]}  Nb6 {[%clk 0:02:55]} 8. Bb5 {[%clk 0:02:58]}  dxe5 {[%clk 0:02:55]} 9. Nxe5 {[%clk 0:02:58]}  Bd7 {[%clk 0:02:56]} 10. Nxd7 {[%clk 0:02:57]}  Qxd7 {[%clk 0:02:57]} 11. O-O {[%clk 0:02:57]}  e6 {[%clk 0:02:53]} 12. Be3 {[%clk 0:02:57]}  Be7 {[%clk 0:02:48]} 13. Nc3 {[%clk 0:02:57]}  O-O {[%clk 0:02:47]} 14. Qg4 {[%clk 0:02:57]}  Bf6 {[%clk 0:02:45]} 15. Rfd1 {[%clk 0:02:55]}  g6 {[%clk 0:02:32]} 16. Ne4 {[%clk 0:02:50]}  Bg7 {[%clk 0:02:30]} 17. Nc5 {[%clk 0:02:46]}  Qd5 {[%clk 0:02:26]} 18. Rac1 {[%clk 0:02:38]}  Rfd8 {[%clk 0:01:59]} 19. Nxb7 {[%clk 0:02:28]}  Qxb5 {[%clk 0:01:55]} 20. Nxd8 {[%clk 0:02:26]}  Rxd8 {[%clk 0:01:56]} 21. b3 {[%clk 0:02:22]}  Nb4 {[%clk 0:01:42]} 22. Qh4 {[%clk 0:02:15]}  Qd7 {[%clk 0:01:34]} 23. a4 {[%clk 0:02:08]}  a5 {[%clk 0:01:19]} 24. Bg5 {[%clk 0:02:02]}  Rc8 {[%clk 0:01:16]} 25. Rxc8+ {[%clk 0:02:01]}  Qxc8 {[%clk 0:01:15]} 26. h3 {[%clk 0:01:45]}  Qd7 {[%clk 0:01:05]} 27. Bf6 {[%clk 0:01:40]}  N6d5 {[%clk 0:01:03]} 28. Bxg7 {[%clk 0:01:38]}  Kxg7 {[%clk 0:01:04]} 29. Rc1 {[%clk 0:01:34]}  Qb7 {[%clk 0:00:58]} 30. Rc5 {[%clk 0:01:31]}  Nd3 {[%clk 0:00:39]} 31. Rxa5 {[%clk 0:01:26]}  Qxb3 {[%clk 0:00:38]} 32. Ra8 {[%clk 0:01:20]}  Qd1+ {[%clk 0:00:35]} 33. Kh2 {[%clk 0:01:19]}  Qe2 {[%clk 0:00:30]} 34. Qd8 {[%clk 0:00:30]}  Qxf2 {[%clk 0:00:20]} 35. Qf8+ {[%clk 0:00:30]}  Kf6 {[%clk 0:00:20]} 36. Qd8+ {[%clk 0:00:27]}  Kf5 {[%clk 0:00:18]} 37. Qf8 {[%clk 0:00:21]}  Kg5 {[%clk 0:00:16]} 38. Qd8+ {[%clk 0:00:19]}  f6 {[%clk 0:00:12]} 39. Qd6 {[%clk 0:00:14]}  N5f4 {[%clk 0:00:12]} 40. Qc6 {[%clk 0:00:09]}  Ne1 {[%clk 0:00:12]} 41. Qe4 {[%clk 0:00:07]}  Nexg2 {[%clk 0:00:10]} 42. Ra5+ {[%clk 0:00:08]}  f5 {[%clk 0:00:11]} 43. Qf3 {[%clk 0:00:04]}  Nh4+ {[%clk 0:00:10]} 44. Qxf2 {[%clk 0:00:02]}  Nd3 {[%clk 0:00:10]} 45. Qg3+ {[%clk 0:00:03]}  Kf6 {[%clk 0:00:09]} 46. Qxd3 {[%clk 0:00:03]}  Ke7 {[%clk 0:00:10]} 47. d5 {[%clk 0:00:03]}  Kf6 {[%clk 0:00:11]} 48. Ra6 {[%clk 0:00:03]}  f4 {[%clk 0:00:09]} 49. Qd4+ {[%clk 0:00:03]}  Kg5 {[%clk 0:00:10]} 50. d6 {[%clk 0:00:04]}  Nf3+ {[%clk 0:00:09]} 51. Kg2 {[%clk 0:00:03]}  Nxd4 {[%clk 0:00:10]} 52. d7 {[%clk 0:00:03]}  Nc6 {[%clk 0:00:10]} 53. Rxc6 {[%clk 0:00:02]}  e5 {[%clk 0:00:08]} 54. d8=Q+ {[%clk 0:00:03]}  Kf5 {[%clk 0:00:08]} 55. Kf3 {[%clk 0:00:04]}  e4+ {[%clk 0:00:08]} 56. Kf2 {[%clk 0:00:02]}  f3 {[%clk 0:00:08]} 57. Kf1 {[%clk 0:00:03]}  e3 {[%clk 0:00:08]} 58. Qf8+ {[%clk 0:00:03]}  Ke4 {[%clk 0:00:08]} 59. Rc4+ {[%clk 0:00:03]}  Kd3 {[%clk 0:00:09]} 60. Qc5 {[%clk 0:00:04]}  e2+ {[%clk 0:00:08]} 61. Kf2 {[%clk 0:00:04]}  Kd2 {[%clk 0:00:07]} 62. Qd4# {[%clk 0:00:03]} 1-0


[Site "https://www.chess.com"]

[Event "Titled Tuesday Blitz October 11 Early 2022"]
[White "Ozen, Bahadir"]
[Black "Winterberg, Lukas"]
[WhiteFideId "6337058"]
[BlackFideId "24622702"]
[WhiteElo "2503"]
[BlackElo "2349"]
[Result "1-0"]
[Round "10"]
[TimeControl "180+1"]
[Date "2022.10.12"]
[WhiteClock "0:00:49"]
[BlackClock "0:00:07"]

1. g3 {[%clk 0:03:00]}  h5 {[%clk 0:02:59]} 2. Nf3 {[%clk 0:03:00]}  e6 {[%clk 0:02:58]} 3. Bg2 {[%clk 0:02:58]}  Be7 {[%clk 0:02:58]} 4. h3 {[%clk 0:02:53]}  h4 {[%clk 0:02:57]} 5. g4 {[%clk 0:02:53]}  d5 {[%clk 0:02:57]} 6. c4 {[%clk 0:02:50]}  dxc4 {[%clk 0:02:56]} 7. Qa4+ {[%clk 0:02:48]}  Nd7 {[%clk 0:02:54]} 8. Qxc4 {[%clk 0:02:46]}  Ngf6 {[%clk 0:02:50]} 9. Nc3 {[%clk 0:02:43]}  c5 {[%clk 0:02:47]} 10. O-O {[%clk 0:02:38]}  a6 {[%clk 0:02:42]} 11. a4 {[%clk 0:02:37]}  b5 {[%clk 0:02:36]} 12. Qa2 {[%clk 0:02:32]}  Bb7 {[%clk 0:02:22]} 13. d3 {[%clk 0:02:32]}  b4 {[%clk 0:02:20]} 14. Nd1 {[%clk 0:02:29]}  O-O {[%clk 0:02:18]} 15. Ne3 {[%clk 0:02:27]}  Nd5 {[%clk 0:02:14]} 16. Nc4 {[%clk 0:02:20]}  N7b6 {[%clk 0:02:12]} 17. Na5 {[%clk 0:02:17]}  Rb8 {[%clk 0:02:07]} 18. Nxb7 {[%clk 0:02:16]}  Rxb7 {[%clk 0:02:07]} 19. a5 {[%clk 0:02:12]}  Nd7 {[%clk 0:01:57]} 20. e4 {[%clk 0:01:44]}  Nc7 {[%clk 0:01:50]} 21. Be3 {[%clk 0:01:39]}  Rb5 {[%clk 0:01:50]} 22. Rfd1 {[%clk 0:01:36]}  Bf6 {[%clk 0:01:47]} 23. d4 {[%clk 0:01:36]}  cxd4 {[%clk 0:01:40]} 24. Nxd4 {[%clk 0:01:36]}  Bxd4 {[%clk 0:01:36]} 25. Rxd4 {[%clk 0:01:35]}  Qe7 {[%clk 0:01:31]} 26. Rad1 {[%clk 0:01:32]}  Ne5 {[%clk 0:01:23]} 27. f4 {[%clk 0:01:30]}  b3 {[%clk 0:01:12]} 28. Qb1 {[%clk 0:01:29]}  Ng6 {[%clk 0:00:22]} 29. Rd7 {[%clk 0:01:28]}  Qb4 {[%clk 0:00:22]} 30. Rxc7 {[%clk 0:01:26]}  Qxa5 {[%clk 0:00:22]} 31. Qc1 {[%clk 0:01:24]}  e5 {[%clk 0:00:18]} 32. fxe5 {[%clk 0:01:11]}  Nxe5 {[%clk 0:00:13]} 33. Rc8 {[%clk 0:01:10]}  Rxc8 {[%clk 0:00:12]} 34. Qxc8+ {[%clk 0:01:11]}  Kh7 {[%clk 0:00:13]} 35. Qf5+ {[%clk 0:01:03]}  g6 {[%clk 0:00:09]} 36. Qf4 {[%clk 0:00:58]}  Qc7 {[%clk 0:00:08]} 37. Qh6+ {[%clk 0:00:56]}  Kg8 {[%clk 0:00:09]} 38. Qxh4 {[%clk 0:00:53]}  Rb8 {[%clk 0:00:07]} 39. Kh1 {[%clk 0:00:50]}  Nc4 {[%clk 0:00:07]} 40. Bd4 {[%clk 0:00:49]} 1-0


[Site "https://www.chess.com"]

[Event "Titled Tuesday Blitz October 11 Early 2022"]
[White "Papasimakopoulos, Alexandros"]
[Black "Chigaev, Maksim"]
[WhiteFideId "4244125"]
[BlackFideId "4108116"]
[WhiteElo "2357"]
[BlackElo "2537"]
[Result "1-0"]
[Round "10"]
[TimeControl "180+1"]
[Date "2022.10.11"]
[WhiteClock "0:01:28"]
[BlackClock "0:00:39"]

1. d4 {[%clk 0:02:56]}  d5 {[%clk 0:02:59]} 2. c4 {[%clk 0:02:56]}  e6 {[%clk 0:02:59]} 3. Nc3 {[%clk 0:02:55]}  Nf6 {[%clk 0:02:59]} 4. cxd5 {[%clk 0:02:56]}  exd5 {[%clk 0:03:00]} 5. Bg5 {[%clk 0:02:56]}  c6 {[%clk 0:03:00]} 6. e3 {[%clk 0:02:56]}  h6 {[%clk 0:03:01]} 7. Bh4 {[%clk 0:02:56]}  Be7 {[%clk 0:03:01]} 8. Bd3 {[%clk 0:02:56]}  O-O {[%clk 0:03:02]} 9. Qc2 {[%clk 0:02:56]}  Re8 {[%clk 0:03:02]} 10. Nf3 {[%clk 0:02:56]}  Ne4 {[%clk 0:03:02]} 11. Bxe7 {[%clk 0:02:56]}  Qxe7 {[%clk 0:03:03]} 12. Bxe4 {[%clk 0:02:56]}  dxe4 {[%clk 0:03:01]} 13. Nd2 {[%clk 0:02:57]}  f5 {[%clk 0:02:55]} 14. Nc4 {[%clk 0:02:57]}  Be6 {[%clk 0:02:54]} 15. Ne5 {[%clk 0:02:56]}  Nd7 {[%clk 0:02:54]} 16. Nxd7 {[%clk 0:02:56]}  Qxd7 {[%clk 0:02:54]} 17. Ne2 {[%clk 0:02:46]}  Bf7 {[%clk 0:02:51]} 18. O-O {[%clk 0:02:41]}  a5 {[%clk 0:02:50]} 19. b3 {[%clk 0:02:32]}  Qd6 {[%clk 0:02:34]} 20. Rab1 {[%clk 0:02:31]}  Bd5 {[%clk 0:02:21]} 21. Nf4 {[%clk 0:02:24]}  Bf7 {[%clk 0:02:13]} 22. Rfc1 {[%clk 0:02:23]}  g5 {[%clk 0:02:11]} 23. Ne2 {[%clk 0:02:23]}  Kh7 {[%clk 0:01:53]} 24. Qc5 {[%clk 0:02:23]}  Qxc5 {[%clk 0:01:48]} 25. Rxc5 {[%clk 0:02:22]}  Bd5 {[%clk 0:01:47]} 26. Nc3 {[%clk 0:02:20]}  b6 {[%clk 0:01:46]} 27. Nxd5 {[%clk 0:02:20]}  cxd5 {[%clk 0:01:47]} 28. Rxd5 {[%clk 0:02:17]}  f4 {[%clk 0:01:36]} 29. Rd7+ {[%clk 0:02:16]}  Kg6 {[%clk 0:01:36]} 30. Rd6+ {[%clk 0:02:08]}  Kh5 {[%clk 0:01:32]} 31. Rc1 {[%clk 0:01:34]}  Rec8 {[%clk 0:00:48]} 32. Rcc6 {[%clk 0:01:34]}  Rxc6 {[%clk 0:00:46]} 33. Rxc6 {[%clk 0:01:35]}  f3 {[%clk 0:00:44]} 34. h3 {[%clk 0:01:29]}  fxg2 {[%clk 0:00:38]} 35. Kxg2 {[%clk 0:01:29]}  a4 {[%clk 0:00:39]} 36. Rxb6 {[%clk 0:01:28]} 1-0


[Site "https://www.chess.com"]

[Event "Titled Tuesday Blitz October 11 Early 2022"]
[White "Parpiev, Isaak"]
[Black "Kalajzic, Ivan"]
[WhiteFideId "34281576"]
[BlackFideId "14506378"]
[WhiteElo "2100"]
[BlackElo "2163"]
[Result "1-0"]
[Round "10"]
[TimeControl "180+1"]
[Date "2022.10.12"]
[WhiteClock "0:01:24"]
[BlackClock "0:01:23"]

1. d4 {[%clk 0:02:09]}  Nc6 {[%clk 0:03:00]} 2. c4 {[%clk 0:02:06]}  e5 {[%clk 0:03:00]} 3. d5 {[%clk 0:02:06]}  Nce7 {[%clk 0:03:00]} 4. Nc3 {[%clk 0:02:07]}  Nf6 {[%clk 0:02:59]} 5. e4 {[%clk 0:02:07]}  Ng6 {[%clk 0:02:58]} 6. Be3 {[%clk 0:02:05]}  Bb4 {[%clk 0:02:57]} 7. f3 {[%clk 0:02:05]}  Qe7 {[%clk 0:02:58]} 8. Qd2 {[%clk 0:02:03]}  Bc5 {[%clk 0:02:58]} 9. Bxc5 {[%clk 0:02:02]}  Qxc5 {[%clk 0:02:58]} 10. Nb5 {[%clk 0:02:01]}  d6 {[%clk 0:02:38]} 11. b4 {[%clk 0:02:00]}  Qb6 {[%clk 0:02:39]} 12. c5 {[%clk 0:01:59]}  dxc5 {[%clk 0:02:24]} 13. bxc5 {[%clk 0:02:00]}  Qxc5 {[%clk 0:02:20]} 14. Rc1 {[%clk 0:01:59]}  Qxc1+ {[%clk 0:01:58]} 15. Qxc1 {[%clk 0:01:57]}  O-O {[%clk 0:01:59]} 16. Nxc7 {[%clk 0:01:57]}  Rb8 {[%clk 0:01:59]} 17. Bb5 {[%clk 0:01:51]}  Bd7 {[%clk 0:01:58]} 18. Bxd7 {[%clk 0:01:51]}  Nxd7 {[%clk 0:01:59]} 19. Nb5 {[%clk 0:01:51]}  Rfc8 {[%clk 0:01:59]} 20. Qd2 {[%clk 0:01:51]}  a6 {[%clk 0:01:58]} 21. Nc3 {[%clk 0:01:51]}  Rc4 {[%clk 0:01:54]} 22. Nge2 {[%clk 0:01:51]}  Rbc8 {[%clk 0:01:54]} 23. O-O {[%clk 0:01:51]}  b5 {[%clk 0:01:54]} 24. a3 {[%clk 0:01:51]}  Nc5 {[%clk 0:01:51]} 25. d6 {[%clk 0:01:48]}  Nb3 {[%clk 0:01:51]} 26. Qd5 {[%clk 0:01:48]}  Nd4 {[%clk 0:01:51]} 27. d7 {[%clk 0:01:37]}  Rd8 {[%clk 0:01:48]} 28. f4 {[%clk 0:01:26]}  exf4 {[%clk 0:01:27]} 29. Nxd4 {[%clk 0:01:24]}  Rxc3 {[%clk 0:01:27]} 30. Nc6 {[%clk 0:01:24]}  Rxc6 {[%clk 0:01:23]} 31. Qxc6 {[%clk 0:01:25]}  Ne5 {[%clk 0:01:24]} 32. Qc7 {[%clk 0:01:23]}  Rxd7 {[%clk 0:01:23]} 33. Qc8+ {[%clk 0:01:24]} 1-0


[Site "https://www.chess.com"]

[Event "Titled Tuesday Blitz October 11 Early 2022"]
[White "Reprintsev, Alexander"]
[Black "Aguilar, Juan"]
[WhiteFideId "14100541"]
[BlackFideId "3800091"]
[WhiteElo "2230"]
[BlackElo "2390"]
[Result "1-0"]
[Round "10"]
[TimeControl "180+1"]
[Date "2022.10.12"]
[WhiteClock "0:00:15"]
[BlackClock "0:00:01"]

1. e4 {[%clk 0:03:00]}  c5 {[%clk 0:02:58]} 2. b3 {[%clk 0:03:00]}  d5 {[%clk 0:02:57]} 3. exd5 {[%clk 0:03:00]}  Qxd5 {[%clk 0:02:57]} 4. Nc3 {[%clk 0:02:59]}  Qd8 {[%clk 0:02:55]} 5. Bb2 {[%clk 0:02:59]}  Nf6 {[%clk 0:02:51]} 6. Qe2 {[%clk 0:02:57]}  Nc6 {[%clk 0:02:50]} 7. O-O-O {[%clk 0:02:56]}  Bg4 {[%clk 0:02:45]} 8. f3 {[%clk 0:02:55]}  Bf5 {[%clk 0:02:43]} 9. g4 {[%clk 0:02:54]}  Nd4 {[%clk 0:02:36]} 10. gxf5 {[%clk 0:02:28]}  Nxe2+ {[%clk 0:02:35]} 11. Ngxe2 {[%clk 0:02:29]}  g6 {[%clk 0:02:22]} 12. Ng3 {[%clk 0:02:28]}  Bg7 {[%clk 0:02:19]} 13. Bb5+ {[%clk 0:02:18]}  Kf8 {[%clk 0:02:18]} 14. f4 {[%clk 0:02:15]}  a6 {[%clk 0:01:51]} 15. Bd3 {[%clk 0:02:14]}  b5 {[%clk 0:01:49]} 16. h4 {[%clk 0:02:11]}  b4 {[%clk 0:01:44]} 17. Na4 {[%clk 0:02:07]}  Nd7 {[%clk 0:01:28]} 18. Bxg7+ {[%clk 0:02:05]}  Kxg7 {[%clk 0:01:28]} 19. fxg6 {[%clk 0:02:05]}  hxg6 {[%clk 0:01:27]} 20. f5 {[%clk 0:02:05]}  Qc7 {[%clk 0:01:15]} 21. Rdg1 {[%clk 0:02:00]}  Qe5 {[%clk 0:01:11]} 22. Nb2 {[%clk 0:01:57]}  Nf6 {[%clk 0:00:43]} 23. fxg6 {[%clk 0:01:56]}  fxg6 {[%clk 0:00:40]} 24. Kb1 {[%clk 0:01:52]}  Rad8 {[%clk 0:00:31]} 25. Nc4 {[%clk 0:01:52]}  Qf4 {[%clk 0:00:18]} 26. Bxg6 {[%clk 0:01:40]}  Kf8 {[%clk 0:00:14]} 27. h5 {[%clk 0:01:27]}  a5 {[%clk 0:00:12]} 28. Ne2 {[%clk 0:01:02]}  Qc7 {[%clk 0:00:08]} 29. Rf1 {[%clk 0:01:01]}  a4 {[%clk 0:00:07]} 30. Nf4 {[%clk 0:01:00]}  Rd6 {[%clk 0:00:06]} 31. Nxd6 {[%clk 0:00:59]}  Qxd6 {[%clk 0:00:06]} 32. Bd3 {[%clk 0:00:56]}  a3 {[%clk 0:00:05]} 33. Ng6+ {[%clk 0:00:55]}  Kg7 {[%clk 0:00:05]} 34. Nh4 {[%clk 0:00:30]}  e6 {[%clk 0:00:03]} 35. Rhg1+ {[%clk 0:00:28]}  Kf7 {[%clk 0:00:02]} 36. Bg6+ {[%clk 0:00:23]}  Ke7 {[%clk 0:00:02]} 37. Re1 {[%clk 0:00:21]}  Qd4 {[%clk 0:00:02]} 38. Nf5+ {[%clk 0:00:21]}  Kd7 {[%clk 0:00:01]} 39. Nxd4 {[%clk 0:00:21]}  cxd4 {[%clk 0:00:02]} 40. Rgf1 {[%clk 0:00:20]}  Nd5 {[%clk 0:00:02]} 41. Rf7+ {[%clk 0:00:20]}  Kd6 {[%clk 0:00:03]} 42. Ra7 {[%clk 0:00:17]}  d3 {[%clk 0:00:02]} 43. Ra6+ {[%clk 0:00:17]}  Kc5 {[%clk 0:00:03]} 44. Bxd3 {[%clk 0:00:15]}  Rxh5 {[%clk 0:00:01]} 45. Raxe6 {[%clk 0:00:15]} 1-0


[Site "https://www.chess.com"]

[Event "Titled Tuesday Blitz October 11 Early 2022"]
[White "Rodriguez Santiago, Jaime"]
[Black "Lauridsen, Jesper Morch"]
[WhiteFideId "3100898"]
[BlackFideId "1401890"]
[WhiteElo "2025"]
[BlackElo "2185"]
[Result "1-0"]
[Round "10"]
[TimeControl "180+1"]
[Date "2022.10.12"]
[WhiteClock "0:00:44"]
[BlackClock "0:00:11"]

1. c4 {[%clk 0:03:00]}  c5 {[%clk 0:02:57]} 2. Nc3 {[%clk 0:02:59]}  b6 {[%clk 0:02:56]} 3. e4 {[%clk 0:02:58]}  e6 {[%clk 0:02:54]} 4. d3 {[%clk 0:02:58]}  Bb7 {[%clk 0:02:54]} 5. Nge2 {[%clk 0:02:56]}  Nc6 {[%clk 0:02:50]} 6. g3 {[%clk 0:02:56]}  h5 {[%clk 0:02:48]} 7. h3 {[%clk 0:02:55]}  g5 {[%clk 0:02:35]} 8. Bg2 {[%clk 0:02:53]}  Bg7 {[%clk 0:02:28]} 9. Be3 {[%clk 0:02:49]}  h4 {[%clk 0:02:22]} 10. g4 {[%clk 0:02:47]}  Nd4 {[%clk 0:02:18]} 11. Qd2 {[%clk 0:02:38]}  Nxe2 {[%clk 0:02:02]} 12. Nxe2 {[%clk 0:02:30]}  Bf6 {[%clk 0:01:50]} 13. f4 {[%clk 0:02:26]}  gxf4 {[%clk 0:01:45]} 14. Nxf4 {[%clk 0:02:26]}  Ne7 {[%clk 0:01:43]} 15. O-O {[%clk 0:02:24]}  Qc7 {[%clk 0:01:39]} 16. Nh5 {[%clk 0:02:21]}  Be5 {[%clk 0:01:35]} 17. Qf2 {[%clk 0:02:12]}  O-O-O {[%clk 0:01:18]} 18. Qxf7 {[%clk 0:02:08]}  Nc6 {[%clk 0:01:14]} 19. Bg5 {[%clk 0:01:56]}  Rde8 {[%clk 0:01:04]} 20. Bxh4 {[%clk 0:01:50]}  Bxb2 {[%clk 0:01:01]} 21. Rab1 {[%clk 0:01:47]}  Ne5 {[%clk 0:00:59]} 22. Qg7 {[%clk 0:01:37]}  Nf3+ {[%clk 0:00:58]} 23. Rxf3 {[%clk 0:01:37]}  Bxg7 {[%clk 0:00:57]} 24. Nxg7 {[%clk 0:01:38]}  Ref8 {[%clk 0:00:50]} 25. Bg3 {[%clk 0:01:33]}  Qd8 {[%clk 0:00:44]} 26. Rbf1 {[%clk 0:01:31]}  Rxf3 {[%clk 0:00:43]} 27. Rxf3 {[%clk 0:01:32]}  Rf8 {[%clk 0:00:43]} 28. Nh5 {[%clk 0:01:32]}  Rxf3 {[%clk 0:00:41]} 29. Bxf3 {[%clk 0:01:33]}  Qg5 {[%clk 0:00:40]} 30. Bf4 {[%clk 0:01:32]}  Qg8 {[%clk 0:00:38]} 31. Kf2 {[%clk 0:01:29]}  d5 {[%clk 0:00:37]} 32. exd5 {[%clk 0:01:28]}  exd5 {[%clk 0:00:37]} 33. Nf6 {[%clk 0:01:26]}  Qf7 {[%clk 0:00:33]} 34. g5 {[%clk 0:01:25]}  dxc4 {[%clk 0:00:32]} 35. Bg4+ {[%clk 0:01:21]}  Kd8 {[%clk 0:00:31]} 36. dxc4 {[%clk 0:01:15]}  Qxc4 {[%clk 0:00:30]} 37. Kg3 {[%clk 0:01:15]}  Qd3+ {[%clk 0:00:26]} 38. Kh4 {[%clk 0:01:13]}  c4 {[%clk 0:00:26]} 39. Bh5 {[%clk 0:01:02]}  c3 {[%clk 0:00:24]} 40. g6 {[%clk 0:01:01]}  Qd4 {[%clk 0:00:22]} 41. Kg5 {[%clk 0:00:59]}  Bd5 {[%clk 0:00:19]} 42. g7 {[%clk 0:00:54]}  Qg1+ {[%clk 0:00:17]} 43. Bg4 {[%clk 0:00:52]}  Bxa2 {[%clk 0:00:16]} 44. h4 {[%clk 0:00:45]}  c2 {[%clk 0:00:16]} 45. h5 {[%clk 0:00:45]}  c1=Q {[%clk 0:00:16]} 46. Bxc1 {[%clk 0:00:46]}  Qxc1+ {[%clk 0:00:16]} 47. Kg6 {[%clk 0:00:46]}  Qf4 {[%clk 0:00:14]} 48. h6 {[%clk 0:00:45]}  Bb1+ {[%clk 0:00:13]} 49. Kf7 {[%clk 0:00:45]}  Qc4+ {[%clk 0:00:13]} 50. Be6 {[%clk 0:00:42]}  Bg6+ {[%clk 0:00:10]} 51. Kxg6 {[%clk 0:00:41]}  Qxe6 {[%clk 0:00:10]} 52. g8=Q+ {[%clk 0:00:42]}  Qxg8+ {[%clk 0:00:10]} 53. Nxg8 {[%clk 0:00:43]}  b5 {[%clk 0:00:10]} 54. h7 {[%clk 0:00:43]}  b4 {[%clk 0:00:11]} 55. h8=Q {[%clk 0:00:44]} 1-0


[Site "https://www.chess.com"]

[Event "Titled Tuesday Blitz October 11 Early 2022"]
[White "Sanchez, Robert"]
[Black "Demin, Vladimir"]
[WhiteFideId "2034360"]
[BlackFideId "4167457"]
[WhiteElo "2436"]
[BlackElo "2567"]
[Result "0-1"]
[Round "10"]
[TimeControl "180+1"]
[Date "2022.10.12"]
[WhiteClock "0:01:12"]
[BlackClock "0:01:40"]

1. e4 {[%clk 0:03:00]}  Nf6 {[%clk 0:02:59]} 2. e5 {[%clk 0:03:00]}  Nd5 {[%clk 0:03:00]} 3. Nc3 {[%clk 0:03:00]}  Nxc3 {[%clk 0:03:00]} 4. dxc3 {[%clk 0:03:01]}  d6 {[%clk 0:03:00]} 5. exd6 {[%clk 0:03:02]}  cxd6 {[%clk 0:03:01]} 6. Nf3 {[%clk 0:03:03]}  Nc6 {[%clk 0:03:00]} 7. Bc4 {[%clk 0:03:02]}  e6 {[%clk 0:02:57]} 8. O-O {[%clk 0:03:02]}  d5 {[%clk 0:02:57]} 9. Bd3 {[%clk 0:02:57]}  Bd6 {[%clk 0:02:57]} 10. Re1 {[%clk 0:02:55]}  h6 {[%clk 0:02:56]} 11. Bd2 {[%clk 0:02:53]}  O-O {[%clk 0:02:55]} 12. Qc1 {[%clk 0:02:53]}  f5 {[%clk 0:02:49]} 13. c4 {[%clk 0:02:42]}  d4 {[%clk 0:02:49]} 14. a3 {[%clk 0:02:37]}  e5 {[%clk 0:02:49]} 15. c5 {[%clk 0:02:29]}  Bc7 {[%clk 0:02:48]} 16. b4 {[%clk 0:02:24]}  e4 {[%clk 0:02:44]} 17. Bc4+ {[%clk 0:02:24]}  Kh7 {[%clk 0:02:44]} 18. Ng5+ {[%clk 0:02:15]}  hxg5 {[%clk 0:02:40]} 19. Bxg5 {[%clk 0:02:15]}  Qe8 {[%clk 0:02:40]} 20. Bf4 {[%clk 0:02:11]}  Bxf4 {[%clk 0:02:38]} 21. Qxf4 {[%clk 0:02:11]}  Qg6 {[%clk 0:02:35]} 22. Rxe4 {[%clk 0:01:59]}  fxe4 {[%clk 0:02:30]} 23. Qxf8 {[%clk 0:01:59]}  Bh3 {[%clk 0:02:30]} 24. Bg8+ {[%clk 0:01:55]}  Kh8 {[%clk 0:02:26]} 25. Bf7+ {[%clk 0:01:52]}  Rxf8 {[%clk 0:02:26]} 26. Bxg6 {[%clk 0:01:53]}  Bf5 {[%clk 0:02:24]} 27. Bxf5 {[%clk 0:01:52]}  Rxf5 {[%clk 0:02:25]} 28. Re1 {[%clk 0:01:51]}  Re5 {[%clk 0:02:25]} 29. Rd1 {[%clk 0:01:50]}  a6 {[%clk 0:02:24]} 30. Kf1 {[%clk 0:01:47]}  Kg8 {[%clk 0:02:23]} 31. Ke2 {[%clk 0:01:47]}  Kf7 {[%clk 0:02:24]} 32. Rb1 {[%clk 0:01:42]}  Ke6 {[%clk 0:02:15]} 33. Rc1 {[%clk 0:01:38]}  Kd5 {[%clk 0:02:13]} 34. c3 {[%clk 0:01:38]}  Re7 {[%clk 0:02:06]} 35. c4+ {[%clk 0:01:36]}  Ke5 {[%clk 0:02:06]} 36. b5 {[%clk 0:01:35]}  d3+ {[%clk 0:02:04]} 37. Ke3 {[%clk 0:01:34]}  Nd4 {[%clk 0:02:04]} 38. f4+ {[%clk 0:01:27]}  exf3 {[%clk 0:02:04]} 39. gxf3 {[%clk 0:01:27]}  d2 {[%clk 0:02:01]} 40. Rd1 {[%clk 0:01:21]}  Nb3 {[%clk 0:01:54]} 41. Kd3 {[%clk 0:01:15]}  Rd7+ {[%clk 0:01:44]} 42. Kc3 {[%clk 0:01:15]}  Nxc5 {[%clk 0:01:43]} 43. Rxd2 {[%clk 0:01:11]}  Rxd2 {[%clk 0:01:41]} 44. Kxd2 {[%clk 0:01:12]}  Kd4 {[%clk 0:01:40]} 0-1


[Site "https://www.chess.com"]